bitfinex/quotes_SOLUSD_20250313
["timestamp","ask_amount","ask_price","bid_price","bid_amount"]
[1741848506464,38.59593343,124.09,124.06,0.03]
[1741848507853,8.0593,124.08,124.06,0.03]
[1741848508373,46.65263343,124.12,124.07,38.59593343]
[1741848508576,38.59593343,124.11,124.07,82.3]
[1741848509384,8.0567,124.12,124.06,0.03]
[1741848509385,8.1927,124.09,124.06,0.03]
[1741848509570,38.88025657,124.07,124.06,0.03]
[1741848509749,38.59593343,124.11,124.06,0.03]
[1741848510264,38.59593343,124.1,124.06,0.03]
[1741848510962,38.59593343,124.1,124.06,55.2031]
[1741848511652,38.59593343,124.1,124.06,35.2031]
[1741848511976,1.95972314,124.13,124.06,35.2031]
[1741848511977,38.59593343,124.08,124.06,35.2031]
[1741848512278,38.59593343,124.07,124.06,0.03]
[1741848512450,38.88025657,124.07,124.06,0.03]
[1741848513975,65.58980543,124.07,124.06,0.0001]
[1741848514271,67.25260543,124.07,124.06,0.0001]
[1741848514775,87.26034386,124.07,124.02,0.03]
[1741848515072,38.59593343,124.04,124.02,0.03]
[1741848515275,38.59593343,124.05,124.02,0.03]
[1741848515862,8.0618,124.05,124.02,0.03]
[1741848516051,46.65773343,124.05,124.02,0.03]
[1741848516971,38.59593343,124.04,124.02,0.03]
[1741848517174,38.59593343,124.03,124.02,0.03]
[1741848517953,0.28432314,124.08,124.02,0.03]
[1741848518178,38.59593343,124.06,124.02,35.2031]
[1741848518461,38.59593343,124.05,124.02,35.2031]
[1741848518783,38.59593343,124.06,124.02,43.4162]
[1741848518960,38.59593343,124.08,124.03,38.59593343]
[1741848519167,8.0585,124.1,124.05,38.59593343]
[1741848519377,38.59593343,124.09,124.05,35.1731]
[1741848520390,38.59593343,124.1,124.05,81.83013343]
[1741848521081,38.59593343,124.09,124.05,43.2342]
[1741848521282,38.59593343,124.06,124.02,51.8162]
[1741848521891,38.59593343,124.05,124.02,51.8162]
[1741848522291,38.59593343,124.06,124.02,51.8162]
[1741848522589,38.59593343,124.05,124.02,51.8162]
[1741848523660,38.59593343,124.05,124.02,43.6031]
[1741848523991,8.0619,124.04,124.02,43.6031]
[1741848525485,46.65783343,124.04,124.02,8.43]
[1741848526083,38.59593343,124.03,124.02,8.43]
[1741848526260,38.59593343,124.03,124.02,0.03]
[1741848528277,46.65843343,124.03,124.02,0.03]
[1741848529473,38.59593343,124.03,124.02,0.03]
[1741848530382,38.59593343,124.04,124.02,0.03]
[1741848530763,38.59593343,124.03,124.02,0.03]
[1741848533188,46.65843343,124.03,124.02,0.03]
[1741848534578,65.45024386,124.03,124.01,0.063]
[1741848534779,38.88025657,124.02,124.01,0.063]
[1741848535382,65.59310543,124.02,124.01,0.0001]
[1741848535577,46.94345657,124.02,124.01,0.0001]
[1741848536174,46.65913343,124.02,124.01,0.0001]
[1741848536375,46.94345657,124.02,124.01,0.0001]
[1741848537392,66.959295,124.02,123.98,0.063]
[1741848537603,28.36336157,124.02,123.98,0.063]
[1741848537978,38.59593343,124.0,123.98,35.2361]
[1741848538493,38.59593343,123.99,123.98,35.2361]
[1741848538800,38.59593343,123.99,123.98,0.063]
[1741848539378,46.66103343,123.99,123.98,0.063]
[1741848540788,20.158,124.02,123.98,0.063]
[1741848540995,38.59593343,123.99,123.98,0.063]
[1741848542298,38.59593343,123.99,123.98,0.063]
[1741848542628,38.59593343,124.0,123.98,0.063]
[1741848543298,38.59593343,123.99,123.98,0.063]
[1741848545403,46.66103343,123.99,123.98,0.063]
[1741848547698,8.0651,123.99,123.98,0.063]
[1741848547897,46.66103343,123.99,123.98,0.063]
[1741848548101,20.1594,124.02,123.98,0.063]
[1741848548294,32.33709856,124.01,123.98,0.063]
[1741848548794,24.27329856,124.0,123.98,0.063]
[1741848549188,8.0638,124.01,123.98,0.063]
[1741848549408,32.33709856,124.01,123.98,0.063]
[1741848549596,24.27329856,124.0,123.98,0.063]
[1741848550307,38.84100481,124.0,123.98,0.063]
[1741848551014,38.84100481,123.99,123.98,0.063]
[1741848551597,38.84100481,124.0,123.98,0.063]
[1741848551916,38.84100481,123.99,123.98,0.063]
[1741848552800,46.90610481,123.99,123.98,0.063]
[1741848553707,38.84100481,123.99,123.98,0.063]
[1741848555003,38.84100481,124.0,123.98,0.063]
[1741848555224,38.84100481,124.02,123.98,41.3365]
[1741848555522,38.84100481,124.03,123.98,41.3365]
[1741848555693,38.84100481,124.02,123.99,8.06]
[1741848556007,38.84100481,124.01,123.98,35.2361]
[1741848556508,38.84100481,124.0,123.98,35.2361]
[1741848556707,38.84100481,123.99,123.98,35.2361]
[1741848557397,38.84100481,124.0,123.98,35.2361]
[1741848557793,38.84100481,123.99,123.98,35.2361]
[1741848558595,38.84100481,123.99,123.98,0.063]
[1741848559413,46.90610481,123.99,123.98,0.063]
[1741848560723,55.17662795,123.99,123.98,0.0001]
[1741848561005,18.933972,123.98,123.95,0.0001]
[1741848561207,38.84100481,123.96,123.95,0.0001]
[1741848562796,38.84100481,123.97,123.95,0.0001]
[1741848563120,8.0645,124.0,123.95,43.24]
[1741848563299,38.90400481,124.01,123.96,38.84100481]
[1741848563500,38.90400481,124.01,123.96,74.01410481]
[1741848564195,0.063,124.01,123.98,38.84100481]
[1741848564400,0.063,124.01,123.99,8.0]
[1741848564604,0.063,124.01,123.99,43.1731]
[1741848564918,0.063,124.01,123.99,51.2382]
[1741848565419,0.063,124.01,124.0,64.10151524]
[1741848565808,0.063,124.01,124.0,63.95935367]
[1741848566320,0.063,124.01,124.0,72.16601524]
[1741848566524,0.063,124.06,124.04,20.0]
[1741848566824,0.063,124.06,124.02,18.933972]
[1741848566825,0.063,124.06,124.05,8.0]
[1741848566994,38.90400481,124.06,124.05,8.0]
[1741848568119,38.90400481,124.06,124.02,35.1101]
[1741848568321,46.90230481,124.05,124.03,7.98]
[1741848568824,38.90400481,124.06,124.03,7.98]
[1741848569037,38.90400481,124.06,124.02,43.0901]
[1741848570138,0.063,124.06,124.02,89.99400481]
[1741848570504,0.063,124.06,124.02,51.153]
[1741848571221,38.84100481,124.05,124.02,43.0901]
[1741848571525,0.063,124.06,124.02,89.99430481]
[1741848571726,0.063,124.06,124.02,81.93110481]
[1741848571915,38.90400481,124.06,124.02,43.0901]
[1741848572662,46.96500481,124.06,124.02,43.0901]
[1741848572826,38.84100481,124.05,124.02,43.0901]
[1741848573030,38.84100481,124.03,124.02,43.0901]
[1741848573535,38.84100481,124.04,124.02,43.0901]
[1741848573732,38.84100481,124.05,124.02,43.0901]
[1741848573905,38.84100481,124.04,124.02,43.0901]
[1741848574235,38.84100481,124.05,124.02,43.0901]
[1741848574806,46.90270481,124.05,124.02,35.1101]
[1741848575926,0.063,124.06,124.02,35.1101]
[1741848576131,0.063,124.06,124.02,82.01400481]
[1741848576325,0.063,124.06,124.02,59.35923947]
[1741848576532,24.24913947,124.05,124.02,35.1101]
[1741848577249,24.24913947,124.04,124.02,35.1101]
[1741848579012,24.24913947,124.05,124.02,35.1101]
[1741848580248,32.37293947,124.06,124.02,35.1101]
[1741848580632,24.24913947,124.04,123.99,7.9]
[1741848580818,24.24913947,124.05,124.0,24.24913947]
[1741848581145,32.31043947,124.05,124.0,24.24913947]
[1741848581843,32.31043947,124.05,124.01,0.03]
[1741848582248,8.0613,124.05,124.01,0.03]
[1741848582423,32.31043947,124.05,124.01,0.03]
[1741848584146,32.31043947,124.05,124.01,35.1401]
[1741848584331,24.24913947,124.04,124.01,35.1401]
[1741848584645,24.24913947,124.03,124.01,35.1401]
[1741848585144,24.24913947,124.02,124.01,35.1401]
[1741848585328,24.24913947,124.03,124.01,0.03]
[1741848585654,8.0632,124.02,124.01,0.03]
[1741848586346,32.31233947,124.02,124.01,0.03]
[1741848587673,24.24913947,124.02,124.01,0.03]
[1741848588334,24.53346261,124.02,124.01,0.03]
[1741848588535,24.24913947,124.02,124.01,0.03]
[1741848588729,20.1531,124.05,124.01,0.03]
[1741848588928,24.24913947,124.03,124.01,0.03]
[1741848589847,24.24913947,124.04,124.01,35.1401]
[1741848590834,32.31053947,124.05,124.01,35.1401]
[1741848592347,24.24913947,124.04,124.01,35.1401]
[1741848592540,32.31053947,124.05,124.01,35.1401]
[1741848593143,24.24913947,124.03,124.01,35.1401]
[1741848594053,8.0621,124.04,124.01,35.1401]
[1741848595242,32.37363947,124.05,124.01,43.0201]
[1741848595844,24.24913947,124.04,124.01,43.0201]
[1741848597433,8.0625,124.03,124.01,43.0201]
[1741848598148,32.31163947,124.03,124.01,43.0201]
[1741848598346,24.24913947,124.03,124.01,43.0201]
[1741848599646,24.24913947,124.02,124.01,35.1401]
[1741848599843,24.24913947,124.02,124.01,0.03]
[1741848601349,8.0627,124.03,124.01,0.03]
[1741848601555,24.24913947,124.02,124.01,0.03]
[1741848603557,0.28432314,124.01,123.98,0.03]
[1741848603762,52.75466261,124.02,123.98,0.03]
[1741848603763,24.24913947,124.0,123.98,0.03]
[1741848604147,32.31233947,124.02,123.98,0.03]
[1741848604541,24.24913947,124.0,123.98,0.03]
[1741848604955,24.24913947,123.99,123.98,0.03]
[1741848605637,32.31423947,123.99,123.98,0.03]
[1741848605838,24.24913947,123.97,123.95,0.0001]
[1741848606046,28.51232314,123.99,123.95,0.0001]
[1741848606047,24.24913947,123.96,123.95,0.0001]
[1741848607078,24.24913947,123.96,123.93,35.1731]
[1741848607079,0.28432314,123.95,123.93,0.063]
[1741848607245,24.24913947,123.94,123.93,0.063]
[1741848607763,32.31753947,123.94,123.93,0.063]
[1741848609864,32.31753947,123.94,123.93,0.0001]
[1741848610469,24.24913947,123.94,123.93,0.0001]
[1741848610858,24.24913947,123.96,123.93,35.1102]
[1741848612164,8.0658,123.98,123.93,35.1102]
[1741848612354,24.24913947,123.97,123.93,35.1102]
[1741848612548,24.24913947,123.95,123.93,35.1102]
[1741848612754,24.24913947,123.94,123.93,0.0001]
[1741848613367,24.24913947,123.95,123.93,0.0001]
[1741848613959,32.31673947,123.96,123.93,0.0001]
[1741848614167,24.24913947,123.96,123.93,0.0001]
[1741848614495,32.31463947,123.99,123.93,24.24923947]
[1741848614672,32.31463947,123.99,123.93,59.35933947]
[1741848614986,32.31463947,123.99,123.93,35.1102]
[1741848614987,24.24913947,123.97,123.93,35.1102]
[1741848615364,24.24913947,123.96,123.93,35.1102]
[1741848616285,32.31593947,123.97,123.93,35.1102]
[1741848617053,32.31513947,123.98,123.93,35.1102]
[1741848617256,24.24913947,123.98,123.93,67.42823947]
[1741848617465,32.31503947,123.98,123.93,67.42823947]
[1741848617991,8.0659,123.98,123.93,67.42823947]
[1741848618286,32.31503947,123.98,123.93,67.42823947]
[1741848618991,8.0659,123.98,123.93,67.42823947]
[1741848619169,32.31443947,123.99,123.94,31.80833947]
[1741848619489,32.31373947,124.0,123.95,24.24913947]
[1741848619684,24.24913947,123.99,123.94,74.73843947]
[1741848620689,24.24913947,123.98,123.94,42.9301]
[1741848620877,8.0646,124.0,123.94,67.17923947]
[1741848621071,24.24913947,123.99,123.94,67.17923947]
[1741848621583,32.31443947,123.99,123.94,75.24753947]
[1741848621791,8.0638,124.01,123.95,24.24913947]
[1741848621969,24.24913947,124.0,123.95,24.24913947]
[1741848622176,24.24913947,123.99,123.94,67.17923947]
[1741848622491,24.24913947,123.98,123.94,7.82]
[1741848623473,28.2234,124.01,123.94,75.24743947]
[1741848623673,24.24913947,124.0,123.95,24.24913947]
[1741848623874,24.24913947,124.0,123.95,35.1101]
[1741848624179,24.24913947,123.98,123.94,7.82]
[1741848624369,24.24913947,123.97,123.94,7.82]
[1741848624683,24.24913947,123.98,123.94,7.82]
[1741848625667,8.0664,123.97,123.94,7.82]
[1741848626576,32.31553947,123.97,123.94,42.9301]
[1741848626774,20.44712314,124.0,123.94,50.9984]
[1741848626775,20.0,124.0,123.94,50.9984]
[1741848627085,24.24913947,123.99,123.94,42.9301]
[1741848627691,32.31493947,123.99,123.94,75.24743947]
[1741848627868,8.0658,123.99,123.94,75.24743947]
[1741848628268,24.24913947,123.98,123.94,42.9301]
[1741848628468,0.063,123.98,123.94,50.9984]
[1741848628763,0.063,123.98,123.94,75.24753947]
[1741848629789,0.063,123.98,123.94,67.17923947]
[1741848629984,0.063,123.98,123.94,42.9301]
[1741848630200,0.063,123.98,123.94,75.24753947]
[1741848630491,0.063,123.98,123.96,24.24913947]
[1741848630905,0.063,123.98,123.97,25.89823947]
[1741848631197,0.063,123.98,123.97,61.00833947]
[1741848632181,0.063,123.98,123.97,36.7592]
[1741848633892,0.063,123.98,123.97,35.1101]
[1741848639901,0.063,123.98,123.97,43.1765]
[1741848640082,0.063,123.98,123.97,73.54823947]
[1741848640284,0.063,123.98,123.97,92.48221147]
[1741848640993,0.063,124.02,124.0,1.5765]
[1741848641209,0.063,124.02,124.01,52.00913947]
[1741848641497,0.063,124.02,124.01,107.19918773]
[1741848641804,0.063,124.02,124.01,82.95004826]
[1741848642005,0.063,124.02,124.01,107.19918773]
[1741848642494,0.063,124.05,124.01,433.71338773]
[1741848642696,0.063,124.05,124.04,43.0409499]
[1741848642880,0.063,124.05,124.04,79.2966541]
[1741848643501,0.063,124.05,124.04,80.97691567]
[1741848643702,0.063,124.06,124.05,18.79181043]
[1741848643909,0.063,124.06,124.05,93.18311147]
[1741848644080,0.063,124.07,124.06,0.14216157]
[1741848644399,0.063,124.07,124.06,60.21190283]
[1741848644785,0.063,124.11,124.1,20.28432314]
[1741848644989,0.063,124.11,124.1,107.71884703]
[1741848645706,0.063,124.13,124.12,50.28432314]
[1741848645881,0.063,124.13,124.12,52.15074861]
[1741848646277,0.063,124.14,124.13,18.933972]
[1741848646492,0.063,124.14,124.13,86.28621147]
[1741848646691,0.063,124.16,124.13,86.28621147]
[1741848646886,0.063,124.19,124.13,86.28621147]
[1741848646887,0.063,124.19,124.16,34.9841]
[1741848647091,0.063,124.19,124.18,24.24913947]
[1741848647401,0.063,124.19,124.18,79.37454511]
[1741848647910,0.063,124.19,124.18,78.0250499]
[1741848648282,0.063,124.19,124.18,85.7850499]
[1741848648713,0.063,124.19,124.18,93.8378499]
[1741848649013,0.063,124.19,124.18,85.7850499]
[1741848649489,0.063,124.19,124.18,78.0250499]
[1741848649695,0.063,124.19,124.18,85.8050499]
[1741848650203,0.063,124.19,124.18,34.9841]
[1741848650512,0.063,124.19,124.18,42.7641]
[1741848650882,0.063,124.19,124.18,81.47022089]
[1741848651120,0.063,124.19,124.18,42.7641]
[1741848653815,38.76912089,124.19,124.18,34.9841]
[1741848654022,0.063,124.19,124.18,34.9841]
[1741848655016,0.063,124.19,124.18,92.48203132]
[1741848655236,0.063,124.19,124.18,100.67699289]
[1741848656418,0.063,124.19,124.18,92.48203132]
[1741848656902,0.063,124.19,124.18,412.53483132]
[1741848657318,0.063,124.19,124.18,100.53483132]
[1741848658216,0.063,124.19,124.18,100.67699289]
[1741848658426,0.063,124.19,124.18,92.48203132]
[1741848659094,0.063,124.19,124.18,100.53483132]
[1741848660130,0.063,124.19,124.18,92.48203132]
[1741848660417,0.063,124.19,124.18,34.9841]
[1741848660594,0.063,124.19,124.18,42.6841]
[1741848660794,38.76912089,124.19,124.18,34.9841]
[1741848662223,46.82122089,124.19,124.16,213.183]
[1741848662524,38.70612089,124.18,124.16,213.183]
[1741848663523,46.75902089,124.18,124.16,213.183]
[1741848663817,38.70612089,124.17,124.16,0.063]
[1741848664315,38.99044403,124.17,124.16,0.063]
[1741848664514,38.70612089,124.17,124.16,0.063]
[1741848665335,46.75952089,124.17,124.16,0.063]
[1741848665923,47.04384403,124.17,124.16,0.063]
[1741848666516,0.28432314,124.15,124.08,34.9841]
[1741848666821,38.70612089,124.09,124.08,34.9841]
[1741848667009,38.70612089,124.09,124.04,34.9841]
[1741848667320,38.70612089,124.08,124.04,34.9841]
[1741848667623,46.76562089,124.08,124.04,34.9841]
[1741848668125,38.70612089,124.07,124.04,34.9841]
[1741848668523,38.70612089,124.06,124.03,0.063]
[1741848668718,38.70612089,124.05,124.03,0.063]
[1741848668913,38.70612089,124.06,124.03,0.063]
[1741848669503,38.70612089,124.07,124.03,35.0471]
[1741848669717,38.70612089,124.08,124.03,73.75322089]
[1741848670604,38.70612089,124.09,124.04,57.49793132]
[1741848670809,38.70612089,124.09,124.04,92.48203132]
[1741848672124,38.70612089,124.09,124.04,100.54353132]
[1741848673011,38.70612089,124.1,124.05,38.70612089]
[1741848673425,38.70612089,124.1,124.05,46.36612089]
[1741848673615,8.0575,124.11,124.05,46.36612089]
[1741848673802,38.70612089,124.1,124.05,46.36612089]
[1741848674123,38.70612089,124.1,124.05,54.42692089]
[1741848675022,46.76412089,124.1,124.05,89.41102089]
[1741848675216,38.70612089,124.09,124.05,50.7679]
[1741848675523,38.70612089,124.09,124.05,42.7071]
[1741848675822,38.70612089,124.09,124.05,354.7071]
[1741848676324,38.70612089,124.09,124.05,42.7071]
[1741848677103,38.70612089,124.09,124.05,50.7683]
[1741848677426,46.76412089,124.1,124.05,89.47442089]
[1741848677632,38.70612089,124.1,124.05,89.47442089]
[1741848678529,16.0608,124.12,124.07,38.70612089]
[1741848678530,38.70612089,124.12,124.07,38.70612089]
[1741848678715,38.70612089,124.12,124.07,73.69022089]
[1741848680027,38.70612089,124.11,124.07,34.9841]
[1741848680405,38.70612089,124.11,124.07,43.0438]
[1741848682010,8.0554,124.14,124.07,43.0438]
[1741848682213,38.70612089,124.13,124.08,38.70612089]
[1741848682416,38.70612089,124.13,124.07,63.1937]
[1741848682742,38.70612089,124.13,124.08,38.70612089]
[1741848683409,38.70612089,124.13,124.09,8.0586]
[1741848683823,9.6356,124.15,124.09,8.0586]
[1741848684016,9.6356,124.15,124.09,43.0427]
[1741848684530,24.22603484,124.15,124.1,31.86603484]
[1741848684705,24.22603484,124.15,124.1,66.85013484]
[1741848684901,24.22603484,124.16,124.11,43.01784527]
[1741848685428,24.22603484,124.15,124.12,8.0567]
[1741848685633,24.22603484,124.14,124.12,34.9841]
[1741848686415,24.22603484,124.15,124.12,34.9841]
[1741848686811,32.28073484,124.15,124.12,34.9841]
[1741848687127,24.22603484,124.14,124.12,34.9841]
[1741848687838,24.22603484,124.15,124.12,34.9841]
[1741848688139,24.22603484,124.14,124.12,34.9841]
[1741848689033,24.22603484,124.13,124.12,34.9841]
[1741848689420,24.22603484,124.14,124.12,34.9841]
[1741848689623,24.22603484,124.14,124.1,50.682]
[1741848693042,24.22603484,124.15,124.1,74.90803484]
[1741848693340,0.03,124.16,124.1,74.90803484]
[1741848693521,24.25603484,124.16,124.1,74.90803484]
[1741848695845,24.22603484,124.14,124.1,50.682]
[1741848697138,24.22603484,124.15,124.1,50.682]
[1741848698240,24.22603484,124.14,124.1,50.682]
[1741848699836,24.22603484,124.14,124.1,50.745]
[1741848704551,32.28173484,124.14,124.1,42.6871]
[1741848704725,24.22603484,124.14,124.1,50.7451]
[1741848706033,24.22603484,124.15,124.1,74.97113484]
[1741848707350,24.22603484,124.14,124.1,42.6871]
[1741848707649,24.22603484,124.14,124.1,50.7451]
[1741848707838,24.22603484,124.14,124.1,42.6871]
[1741848708546,32.28153484,124.14,124.1,42.6871]
[1741848709354,24.22603484,124.12,124.1,42.6871]
[1741848710931,24.22603484,124.13,124.1,42.6871]
[1741848713954,32.28213484,124.13,124.1,42.6871]
[1741848714551,24.22603484,124.13,124.1,42.6871]
[1741848714963,24.22603484,124.14,124.1,50.745]
[1741848715949,24.22603484,124.13,124.1,42.6871]
[1741848716154,24.22603484,124.12,124.1,42.6871]
[1741848716333,15.50599061,124.12,124.1,42.6871]
[1741848716653,15.50599061,124.13,124.1,42.6871]
[1741848717236,8.0558,124.14,124.1,42.6871]
[1741848717439,23.56179061,124.14,124.1,42.6871]
[1741848717639,15.50599061,124.13,124.1,42.6871]
[1741848718439,15.50599061,124.14,124.1,50.7448]
[1741848719252,15.50599061,124.15,124.1,66.25079061]
[1741848719559,15.53599061,124.16,124.1,66.25079061]
[1741848719763,15.50599061,124.15,124.1,66.25079061]
[1741848720468,15.53599061,124.16,124.11,34.15563947]
[1741848720762,15.50599061,124.15,124.11,18.64964886]
[1741848721562,23.56089061,124.15,124.1,42.6871]
[1741848721741,15.50599061,124.14,124.1,42.6871]
[1741848722859,15.50599061,124.14,124.1,50.745]
[1741848723066,15.50599061,124.15,124.1,50.745]
[1741848723442,15.50599061,124.15,124.1,66.25099061]
[1741848723862,8.0844,124.16,124.1,66.25099061]
[1741848724073,15.50599061,124.15,124.1,66.25099061]
[1741848724666,15.53599061,124.16,124.11,35.74183947]
[1741848725454,15.53599061,124.16,124.11,70.72593947]
[1741848725767,23.59009061,124.16,124.11,78.78283947]
[1741848725960,15.53599061,124.16,124.11,78.78283947]
[1741848726161,0.03,124.16,124.11,78.78283947]
[1741848727371,15.53599061,124.16,124.11,78.78283947]
[1741848727762,15.53599061,124.16,124.11,63.27684886]
[1741848728570,23.59059061,124.16,124.11,63.27684886]
[1741848728866,15.53599061,124.16,124.11,78.78283947]
[1741848729453,23.59019061,124.16,124.11,78.78283947]
[1741848730171,23.59019061,124.16,124.11,55.21994886]
[1741848730775,15.50599061,124.15,124.11,55.21994886]
[1741848731363,8.0842,124.16,124.11,55.21994886]
[1741848731568,23.59019061,124.16,124.11,63.27714886]
[1741848731768,23.59019061,124.16,124.11,55.21994886]
[1741848732179,15.50599061,124.15,124.11,55.21994886]
[1741848732676,23.56139061,124.15,124.11,55.21994886]
[1741848735069,23.56139061,124.15,124.11,36.5703]
[1741848735261,15.50599061,124.14,124.11,36.5703]
[1741848735468,15.50599061,124.13,124.1,42.5071]
[1741848736583,15.50599061,124.13,124.1,35.0471]
[1741848736758,15.50599061,124.11,124.1,35.0471]
[1741848736958,15.50599061,124.11,124.1,0.063]
[1741848738487,23.56329061,124.11,124.1,0.063]
[1741848744889,85.58725305,124.11,124.1,0.063]
[1741848745061,23.56329061,124.11,124.1,0.063]
[1741848745381,0.28432314,124.1,124.05,0.063]
[1741848745588,15.50599061,124.06,124.05,0.063]
[1741848746991,23.56659061,124.06,124.05,0.063]
[1741848747368,23.85091375,124.06,124.05,0.063]
[1741848747783,30.42883457,124.06,124.05,0.063]
[1741848748009,23.85091375,124.06,124.05,0.063]
[1741848748391,13.9,124.09,124.05,0.063]
[1741848748572,15.50599061,124.08,124.05,0.063]
[1741848748969,15.50599061,124.07,124.05,0.063]
[1741848750498,15.50599061,124.08,124.05,0.063]
[1741848750995,15.50599061,124.07,124.05,0.063]
[1741848752293,15.50599061,124.08,124.05,0.063]
[1741848752878,0.28432314,124.11,124.05,0.063]
[1741848753293,15.50599061,124.09,124.05,0.063]
[1741848753598,15.50599061,124.06,124.05,0.063]
[1741848753896,15.50599061,124.07,124.05,0.063]
[1741848754070,15.50599061,124.06,124.05,0.063]
[1741848754586,8.0586,124.09,124.05,0.063]
[1741848754587,15.50599061,124.07,124.05,0.063]
[1741848755390,15.50599061,124.08,124.05,0.063]
[1741848755593,15.50599061,124.07,124.05,0.063]
[1741848756690,15.50599061,124.06,124.05,0.063]
[1741848756896,15.79031375,124.06,124.05,0.063]
[1741848758294,24.2575202,124.06,124.05,0.063]
[1741848759301,24.2575202,124.08,124.05,0.063]
[1741848759497,38.1575202,124.09,124.05,0.063]
[1741848759796,24.2575202,124.09,124.05,0.063]
[1741848760187,24.2875202,124.1,124.06,8.0606]
[1741848761568,0.03,124.1,124.06,32.3181202]
[1741848761774,0.03,124.1,124.06,39.7581202]
[1741848761989,24.2875202,124.1,124.06,15.5006]
[1741848764282,24.2575202,124.09,124.06,15.5006]
[1741848765092,24.2875202,124.1,124.06,15.5006]
[1741848765675,0.03,124.1,124.06,15.5006]
[1741848766196,24.2875202,124.1,124.06,15.5006]
[1741848766793,24.2575202,124.09,124.06,15.5006]
[1741848767402,0.03,124.1,124.06,15.5006]
[1741848767599,0.03,124.1,124.09,44.2575202]
[1741848767896,24.2875202,124.16,124.1,18.64964886]
[1741848768089,24.2875202,124.16,124.11,24.2575202]
[1741848768286,0.03,124.16,124.11,24.2575202]
[1741848768602,24.2875202,124.16,124.11,24.2575202]
[1741848768995,24.2875202,124.16,124.12,8.0567]
[1741848769895,0.03,124.16,124.12,32.3142202]
[1741848771318,0.03,124.16,124.13,24.2575202]
[1741848772076,0.03,124.16,124.14,24.2575202]
[1741848772583,0.03,124.16,124.14,31.6975202]
[1741848772787,0.03,124.16,124.14,7.44]
[1741848773179,0.03,124.16,124.14,66.6816202]
[1741848773381,0.03,124.16,124.15,8.0547]
[1741848774399,0.03,124.16,124.14,74.7367202]
[1741848774576,0.03,124.16,124.14,42.4241]
[1741848776706,0.03,124.16,124.14,34.9841]
[1741848777608,0.03,124.16,124.12,74.7179202]
[1741848781303,0.03,124.16,124.14,24.2575202]
[1741848782101,0.03,124.16,124.14,32.3125202]
[1741848782306,0.03,124.16,124.14,8.055]
[1741848782507,0.03,124.16,124.13,42.90716906]
[1741848782702,0.03,124.16,124.13,50.96296906]
[1741848782891,0.03,124.16,124.13,42.90716906]
[1741848783204,0.03,124.16,124.12,66.6616202]
[1741848783404,0.03,124.18,124.17,0.14216157]
[1741848783610,0.03,124.18,124.17,85.27126906]
[1741848783796,0.03,124.18,124.17,7.38]
[1741848785097,0.03,124.18,124.17,31.6375202]
[1741848785395,0.03,124.18,124.17,39.6909202]
[1741848786013,0.03,124.18,124.17,110.6248922]
[1741848786201,0.0001,124.18,124.17,93.46683063]
[1741848786405,0.0001,124.18,124.17,117.8665124]
[1741848786609,0.0001,124.19,124.18,18.79181043]
[1741848786805,0.0001,124.19,124.18,280.5490124]
[1741848787004,0.0001,124.19,124.18,256.2914922]
[1741848787893,0.0001,124.19,124.18,288.3055124]
[1741848788084,0.0001,124.2,124.19,26.84391043]
[1741848788298,0.0001,124.2,124.19,52.30844009]
[1741848788803,0.063,124.23,124.22,20.14216157]
[1741848789006,0.063,124.23,124.22,86.76368177]
[1741848789195,0.063,124.23,124.22,398.76368177]
[1741848790331,0.063,124.23,124.22,406.81388177]
[1741848791094,0.063,124.23,124.22,425.6056922]
[1741848792510,0.063,124.23,124.22,113.6056922]
[1741848793107,0.063,124.23,124.22,114.81246564]
[1741848794019,0.063,124.23,124.22,113.6056922]
[1741848795006,0.063,124.23,124.22,114.81258515]
[1741848795420,0.063,124.23,124.22,113.6056922]
[1741848795625,0.063,124.23,124.22,73.63364886]
[1741848795822,0.063,124.23,124.22,62.404]